bitfinex/quotes_BTCUSD_20240617
["timestamp","ask_amount","ask_price","bid_price","bid_amount"]
[1718656014869,1.60594588,66508.0,66507.0,0.009394]
[1718656015027,1.62894588,66508.0,66507.0,0.009394]
[1718656015231,1.48094344,66508.0,66507.0,0.009394]
[1718656015443,1.39492551,66508.0,66507.0,0.009394]
[1718656016212,1.32823088,66508.0,66507.0,0.009394]
[1718656016754,1.33423088,66508.0,66507.0,0.009394]
[1718656017153,1.37865241,66508.0,66507.0,0.009394]
[1718656017590,1.47875241,66508.0,66507.0,0.010394]
[1718656017764,1.63146497,66508.0,66507.0,0.010394]
[1718656018213,1.58104344,66508.0,66507.0,0.010394]
[1718656018599,1.59104344,66508.0,66507.0,0.010394]
[1718656019007,1.57704344,66508.0,66507.0,0.009394]
[1718656019349,1.58704344,66508.0,66507.0,0.010394]
[1718656020109,3.69596344,66508.0,66507.0,0.00143343]
[1718656020313,4.55636877,66508.0,66507.0,0.00143343]
[1718656020523,1.450791,66496.0,66495.0,0.009394]
[1718656020753,2.50906766,66496.0,66495.0,0.009394]
[1718656020955,4.04874666,66496.0,66495.0,0.009394]
[1718656021203,4.10351419,66496.0,66495.0,0.009394]
[1718656021403,4.23271419,66496.0,66495.0,0.009394]
[1718656021609,4.13355309,66496.0,66495.0,0.009394]
[1718656021810,3.78117309,66496.0,66495.0,0.009394]
[1718656022346,3.75896909,66496.0,66495.0,0.009394]
[1718656022879,3.77296909,66496.0,66495.0,0.009394]
[1718656023086,3.78696909,66496.0,66495.0,0.009394]
[1718656023669,4.18773809,66496.0,66495.0,0.009394]
[1718656023869,4.08773809,66496.0,66495.0,0.009394]
[1718656024516,3.52722768,66496.0,66495.0,0.009394]
[1718656025145,2.87631668,66496.0,66495.0,0.009394]
[1718656028584,2.67346368,66496.0,66495.0,0.009394]
[1718656029468,2.26946851,66496.0,66495.0,0.009394]
[1718656029923,2.62023751,66496.0,66495.0,0.009394]
[1718656030380,2.31946851,66496.0,66495.0,0.009394]
[1718656030836,2.41946851,66496.0,66495.0,1e-08]
[1718656031314,2.10723751,66496.0,66495.0,1e-08]
[1718656031540,2.15995007,66496.0,66495.0,1e-08]
[1718656032162,2.00723751,66496.0,66495.0,1e-08]
[1718656033397,2.05339531,66496.0,66495.0,1e-08]
[1718656034329,0.77381453,66496.0,66495.0,0.26390001]
[1718656034548,0.47304553,66496.0,66495.0,0.59768537]
[1718656035183,0.77381453,66496.0,66495.0,0.59768537]
[1718656035398,1.07458353,66496.0,66495.0,0.59768537]
[1718656035606,0.77381453,66496.0,66495.0,0.59768537]
[1718656036898,0.62108565,66496.0,66495.0,0.59768537]
[1718656037136,0.92185465,66496.0,66495.0,0.59768537]
[1718656039386,0.38275125,66496.0,66495.0,0.59768537]
[1718656039517,0.32031665,66496.0,66495.0,0.59768537]
[1718656040357,0.68351966,66496.0,66495.0,0.59768537]
[1718656040563,0.98428866,66496.0,66495.0,0.59768537]
[1718656040762,0.68351966,66496.0,66495.0,0.59768537]
[1718656041026,0.98428866,66496.0,66495.0,0.59768537]
[1718656041578,0.76961966,66496.0,66495.0,0.59768537]
[1718656041777,1.07038866,66496.0,66495.0,0.59768537]
[1718656041983,0.76961966,66496.0,66495.0,0.59768537]
[1718656042219,1.07038866,66496.0,66495.0,0.59768537]
[1718656043385,0.76961966,66496.0,66495.0,0.59768537]
[1718656043804,1.07038866,66496.0,66495.0,0.59768537]
[1718656044241,1.07038866,66496.0,66495.0,0.61646112]
[1718656044242,0.20936666,66496.0,66495.0,0.61646112]
[1718656044441,0.14693265,66496.0,66495.0,0.61646112]
[1718656045733,0.19731665,66496.0,66495.0,0.59768537]
[1718656045936,0.57008565,66496.0,66495.0,0.59768537]
[1718656047276,0.87085465,66496.0,66495.0,0.59270001]
[1718656047495,0.57008565,66496.0,66495.0,0.59770975]
[1718656047707,0.58108565,66496.0,66495.0,0.59770975]
[1718656048133,0.59208565,66496.0,66495.0,0.59770975]
[1718656050271,0.29131665,66496.0,66495.0,0.6164855]
[1718656050488,0.14093265,66496.0,66495.0,0.6164855]
[1718656050702,0.14093265,66496.0,66495.0,0.9172595]
[1718656050703,0.022,66496.0,66495.0,0.9172595]
[1718656050914,0.122,66496.0,66495.0,0.6164855]
[1718656051551,0.111,66496.0,66495.0,0.6164855]
[1718656051765,0.10086,66496.0,66495.0,0.6164855]
[1718656051985,0.1,66504.0,66503.0,0.01877575]
[1718656052204,0.24428142,66519.0,66514.0,0.5811]
[1718656052466,0.150338,66517.0,66514.0,0.59987575]
[1718656052681,0.15034,66516.0,66515.0,0.00499407]
[1718656053099,0.15034,66516.0,66514.0,0.59987575]
[1718656053521,0.21858381,66519.0,66514.0,0.59987575]
[1718656053750,0.300672,66518.0,66514.0,0.5811]
[1718656053962,0.150342,66515.0,66514.0,0.5811]
[1718656054177,0.551026,66515.0,66514.0,0.5811]
[1718656055019,0.250342,66515.0,66514.0,0.5821]
[1718656055394,0.250342,66515.0,66514.0,0.5811]
[1718656055598,0.551026,66515.0,66514.0,0.5821]
[1718656055806,0.558026,66515.0,66514.0,0.5821]
[1718656056654,0.565026,66515.0,66514.0,0.5821]
[1718656057642,0.264342,66515.0,66514.0,0.5821]
[1718656057858,0.114,66515.0,66514.0,0.5821]
[1718656058070,0.264342,66515.0,66514.0,0.5821]
[1718656058282,0.565026,66515.0,66514.0,0.5821]
[1718656058705,0.86571,66515.0,66514.0,0.5821]
[1718656058929,0.565026,66515.0,66514.0,0.5821]
[1718656061529,0.86571,66515.0,66514.0,0.5821]
[1718656061759,0.86571,66515.0,66514.0,0.001]
[1718656061944,1.69292288,66515.0,66514.0,0.001]
[1718656064430,2.00503225,66515.0,66514.0,0.001]
[1718656065057,1.86943225,66515.0,66514.0,0.001]
[1718656065900,1.55732288,66515.0,66514.0,0.001]
[1718656066174,1.86943087,66515.0,66514.0,0.001]
[1718656067091,1.09233399,66515.0,66514.0,0.001]
[1718656067316,0.780226,66515.0,66514.0,0.5501]
[1718656067563,0.479542,66515.0,66514.0,0.5501]
[1718656067781,0.264342,66515.0,66514.0,0.55505767]
[1718656068003,0.264342,66515.0,66514.0,0.5501]
[1718656068232,0.264342,66515.0,66514.0,0.55505767]
[1718656068454,0.565026,66515.0,66514.0,0.55505767]
[1718656072015,0.114,66515.0,66514.0,0.63121676]
[1718656072146,0.014,66515.0,66514.0,0.63121676]
[1718656072502,0.114,66515.0,66514.0,0.63121676]
[1718656073082,0.114,66515.0,66514.0,0.62625909]
[1718656073290,0.300644,66524.0,66514.0,0.62625909]
[1718656073291,0.04446918,66525.0,66522.0,0.01877575]
[1718656073463,0.04446918,66537.0,66522.0,0.78389933]
[1718656073683,0.300595,66535.0,66522.0,0.63357333]
[1718656073916,0.300595,66535.0,66522.0,0.63851987]
[1718656074139,0.300615,66531.0,66522.0,0.63851987]
[1718656074277,0.150309,66530.0,66522.0,0.63851987]
[1718656074751,0.01485,66523.0,66522.0,0.63851987]
[1718656075742,0.01585,66523.0,66522.0,0.64551987]
[1718656075945,0.00085,66523.0,66522.0,0.63851987]
[1718656076145,0.00085,66523.0,66522.0,0.63951987]
[1718656076349,0.00285,66523.0,66522.0,0.64651987]
[1718656079209,0.00285,66523.0,66522.0,0.58892229]
[1718656079983,0.00285,66523.0,66522.0,0.59892229]
[1718656080385,0.00285,66523.0,66522.0,0.73924829]
[1718656080957,0.00285,66523.0,66522.0,1.34055229]
[1718656081163,0.00285,66523.0,66522.0,0.73924829]
[1718656081367,0.00285,66523.0,66522.0,1.15489172]
[1718656081575,0.00285,66523.0,66522.0,0.84423972]
[1718656082670,0.00285,66523.0,66522.0,0.69391372]
[1718656082883,0.00285,66523.0,66522.0,0.58892229]
[1718656085562,0.00285,66523.0,66522.0,0.57014654]
[1718656085761,0.00285,66523.0,66522.0,0.58892229]
[1718656096957,0.00285,66523.0,66522.0,0.57014654]
[1718656096958,0.754467,66523.0,66522.0,0.57014654]
[1718656097156,0.754467,66523.0,66522.0,0.01294654]
[1718656097812,0.45382,66523.0,66522.0,0.03172229]
[1718656098002,0.45382,66523.0,66522.0,0.01294654]
[1718656100554,0.153173,66523.0,66522.0,0.01294654]
[1718656100763,0.00285,66523.0,66522.0,0.03172229]
[1718656101177,0.00285,66523.0,66522.0,0.41327452]
[1718656102630,0.00285,66523.0,66522.0,0.5760034]
[1718656102776,0.00285,66523.0,66522.0,1.6675334]
[1718656103198,0.00285,66523.0,66522.0,1.2808814]
[1718656103397,0.00285,66523.0,66522.0,1.5815334]
[1718656103608,0.00285,66523.0,66522.0,1.2808814]
[1718656103770,0.00285,66523.0,66522.0,0.8299034]
[1718656103970,0.00285,66523.0,66522.0,0.8199034]
[1718656105608,0.00285,66523.0,66522.0,1.2808814]
[1718656106375,0.00285,66523.0,66522.0,1.5815334]
[1718656106584,0.00285,66523.0,66522.0,2.09297589]
[1718656107624,0.00185,66523.0,66522.0,2.10797589]
[1718656107828,0.00085,66523.0,66522.0,2.13099971]
[1718656107970,0.00185,66523.0,66522.0,2.03499971]
[1718656108175,0.00285,66523.0,66522.0,2.04899971]
[1718656109271,0.00285,66523.0,66522.0,2.01897589]
[1718656109465,0.00185,66523.0,66522.0,2.14500209]
[1718656109909,0.00285,66523.0,66522.0,2.05600209]
[1718656110279,0.00285,66523.0,66522.0,2.02597589]
[1718656110525,0.00285,66523.0,66522.0,3.11702137]
[1718656110701,0.00085,66540.0,66539.0,0.46963775]
[1718656110854,0.00085,66540.0,66539.0,0.63719773]
[1718656111052,0.00085,66540.0,66539.0,0.64231885]
[1718656112820,0.00085,66540.0,66539.0,1.25590973]
[1718656112945,0.00085,66540.0,66539.0,1.55648473]
[1718656113152,0.00085,66540.0,66539.0,1.86205973]
[1718656113624,0.00085,66540.0,66539.0,1.56148473]
[1718656113938,0.00085,66540.0,66539.0,1.56548473]
[1718656114671,0.00085,66540.0,66539.0,1.56148473]
[1718656114873,0.00085,66540.0,66539.0,1.85705973]
[1718656115281,0.00085,66540.0,66539.0,1.86305973]
[1718656115476,0.00085,66540.0,66539.0,1.85705973]
[1718656115921,0.00085,66540.0,66539.0,1.86605973]
[1718656116325,0.00085,66540.0,66539.0,1.85705973]
[1718656116525,0.00085,66540.0,66539.0,1.86905973]
[1718656116917,0.00085,66540.0,66539.0,1.87605973]
[1718656117325,0.00085,66540.0,66539.0,1.86905973]
[1718656117755,0.00085,66540.0,66539.0,1.88105973]
[1718656119281,0.00085,66540.0,66539.0,1.98305973]
[1718656119436,0.00085,66540.0,66539.0,1.88105973]
[1718656119637,0.00085,66540.0,66539.0,2.00579814]
[1718656120275,0.00085,66540.0,66539.0,1.97105973]
[1718656120651,0.00085,66540.0,66539.0,2.09579865]
[1718656121320,0.00085,66540.0,66539.0,2.10979865]
[1718656121526,0.00085,66540.0,66539.0,2.09779865]
[1718656121732,0.00085,66540.0,66539.0,2.92677075]
[1718656121980,0.00085,66540.0,66539.0,3.27677075]
[1718656122162,0.00085,66560.0,66559.0,0.01877575]
[1718656122395,0.00085,66560.0,66559.0,1.05600275]
[1718656122567,0.00085,66560.0,66559.0,1.10787799]
[1718656122719,0.00085,66560.0,66559.0,0.64715099]
[1718656122925,0.00085,66560.0,66559.0,0.79739299]
[1718656123514,0.00085,66560.0,66559.0,1.09787799]
[1718656123713,0.00085,66560.0,66559.0,1.39836299]
[1718656123953,0.00085,66560.0,66559.0,1.09787799]
[1718656124361,0.00085,66560.0,66559.0,0.79739299]
[1718656124563,0.00085,66560.0,66559.0,1.09787799]
[1718656125097,0.00085,66560.0,66559.0,1.10987799]
[1718656125294,0.00085,66560.0,66559.0,1.10187799]
[1718656125893,0.00085,66560.0,66559.0,0.80139299]
[1718656126275,0.00085,66560.0,66559.0,1.10187799]
[1718656126476,0.00085,66560.0,66559.0,1.11187799]
[1718656126678,0.00085,66560.0,66559.0,1.41236299]
[1718656127249,0.00085,66560.0,66559.0,1.56509187]
[1718656127452,0.00085,66560.0,66559.0,1.86557687]
[1718656127828,0.00085,66560.0,66559.0,1.56509187]
[1718656128452,0.00085,66560.0,66559.0,1.56309187]
[1718656128770,0.00085,66560.0,66559.0,1.57509187]
[1718656128979,0.00085,66560.0,66559.0,1.56509187]
[1718656129099,0.00085,66560.0,66559.0,1.57909187]
[1718656129303,0.00085,66560.0,66559.0,1.56109187]
[1718656129511,0.00085,66560.0,66559.0,1.57309187]
[1718656129909,0.00085,66560.0,66559.0,1.58609187]
[1718656130114,0.00085,66560.0,66559.0,0.03635139]
[1718656130510,0.00085,66560.0,66559.0,0.04935139]
[1718656131191,0.00085,66560.0,66559.0,0.03735139]
[1718656131563,0.00085,66560.0,66559.0,0.04935139]
[1718656131992,0.00085,66560.0,66559.0,0.03635139]
[1718656132251,0.00085,66560.0,66559.0,0.02435139]
[1718656132470,0.00085,66560.0,66559.0,0.04935139]
[1718656143179,0.00085,66560.0,66559.0,0.025]
[1718656143180,0.38723,66560.0,66559.0,0.025]
[1718656143356,0.95565,66560.0,66559.0,0.025]
[1718656143554,0.65517,66560.0,66559.0,0.025]
[1718656143841,0.26879,66560.0,66559.0,0.025]
[1718656144841,1.09525,66560.0,66559.0,0.025]
[1718656146655,0.98792569,66560.0,66559.0,0.025]
[1718656148254,0.98877569,66560.0,66559.0,0.025]
[1718656148942,0.68829569,66560.0,66559.0,0.025]
[1718656149148,0.15167569,66560.0,66559.0,0.04377575]
[1718656149719,0.30191569,66560.0,66559.0,0.025]
[1718656150018,0.30191569,66560.0,66559.0,0.04377575]
[1718656151732,0.15167569,66560.0,66559.0,0.04377575]
[1718656151868,0.14045,66560.0,66559.0,0.04377575]
[1718656153111,0.00085,66560.0,66559.0,0.04377575]
[1718656153338,0.00085,66560.0,66559.0,1.90850163]
[1718656153538,0.00085,66560.0,66559.0,2.28793461]
[1718656153748,0.00085,66560.0,66559.0,2.18593461]
[1718656153948,0.00085,66560.0,66559.0,2.19138641]
[1718656154359,0.00085,66560.0,66559.0,2.17838641]
[1718656155430,0.00085,66560.0,66559.0,2.16638641]
[1718656155630,0.00085,66560.0,66559.0,2.08048641]
[1718656155797,0.00085,66560.0,66559.0,2.10848641]
[1718656156213,0.00085,66560.0,66559.0,2.08048641]
[1718656156589,0.00085,66560.0,66559.0,2.10848641]
[1718656156842,0.00085,66560.0,66559.0,2.09448641]
[1718656157452,0.00085,66560.0,66559.0,2.49697141]
[1718656159065,0.00085,66560.0,66559.0,2.49695266]
[1718656159213,0.00085,66560.0,66559.0,2.51095266]
[1718656159627,0.00085,66560.0,66559.0,2.40895266]
[1718656159831,0.00085,66560.0,66559.0,1.9557551]
[1718656163879,0.00085,66560.0,66559.0,2.0577551]
[1718656164525,0.00085,66560.0,66559.0,3.35688895]
[1718656164873,0.00085,66560.0,66559.0,3.43026898]
[1718656165640,0.00085,66560.0,66559.0,3.43026023]
[1718656165816,0.00085,66560.0,66559.0,3.56897279]
[1718656166337,0.00085,66560.0,66559.0,3.55959276]
[1718656166737,0.00085,66560.0,66559.0,3.53159276]
[1718656166943,0.00085,66560.0,66559.0,3.53156024]
[1718656167153,0.00085,66560.0,66559.0,3.55956024]
[1718656167580,0.00085,66560.0,66559.0,3.55157324]
[1718656167784,0.00085,66560.0,66559.0,3.56557324]
[1718656168829,0.00085,66560.0,66559.0,3.5656218]
[1718656169419,0.00085,66560.0,66559.0,3.56562151]
[1718656170251,0.14735,66582.0,66559.0,3.56562151]
[1718656170252,0.13430235,66582.0,66581.0,0.01877575]
[1718656170452,0.13430235,66582.0,66581.0,0.02415553]
[1718656171496,0.13430235,66582.0,66581.0,0.02615553]
[1718656171702,0.01849236,66588.0,66587.0,0.01877575]
[1718656171913,0.10854,66590.0,66587.0,0.01877575]
[1718656171914,0.1,66589.0,66587.0,0.01877575]
[1718656172119,0.1,66589.0,66587.0,0.00537978]
[1718656172356,0.0064,66588.0,66587.0,0.00537978]
[1718656172549,0.0064,66588.0,66586.0,0.01877575]
[1718656172792,0.0064,66588.0,66587.0,0.02253024]
[1718656173190,0.1407,66588.0,66587.0,0.02253024]
[1718656173387,0.2407,66588.0,66586.0,0.01877575]
[1718656173593,0.1,66587.0,66586.0,0.01877575]
[1718656174412,0.1,66587.0,66582.0,0.15272888]
[1718656174413,0.1,66587.0,66584.0,0.01877575]
[1718656174612,0.1,66587.0,66586.0,0.01877575]
[1718656174828,0.1,66587.0,66582.0,0.15272888]
[1718656174829,0.1,66587.0,66585.0,0.01877575]
[1718656175026,0.1,66587.0,66586.0,0.01877575]
[1718656175433,0.1,66587.0,66586.0,0.002]
[1718656175585,0.1,66587.0,66585.0,0.01877575]
[1718656175790,0.1407,66588.0,66586.0,0.03592621]
[1718656176059,0.00854,66590.0,66589.0,0.01877575]
[1718656180360,0.00854,66590.0,66589.0,0.16894975]
[1718656180519,0.00854,66590.0,66589.0,0.01877575]
[1718656184343,0.00854,66590.0,66589.0,0.024115]
[1718656186256,0.00854,66590.0,66589.0,0.270815]
[1718656187660,0.00854,66590.0,66589.0,0.585615]
[1718656188287,0.00854,66590.0,66589.0,0.71026707]
[1718656188489,0.00854,66590.0,66589.0,2.01001822]
[1718656188829,0.00854,66590.0,66589.0,1.70966922]
[1718656189038,0.00854,66590.0,66589.0,1.70657252]
[1718656189238,0.00854,66590.0,66589.0,2.00692152]
[1718656189463,0.00854,66590.0,66589.0,1.83122882]
[1718656189576,0.00854,66590.0,66589.0,1.74542882]
[1718656189782,0.00854,66590.0,66589.0,1.83322882]
[1718656190210,0.00854,66590.0,66589.0,1.70857252]
[1718656190401,0.00854,66590.0,66589.0,1.70957252]
[1718656190831,0.00854,66590.0,66589.0,1.72057252]
[1718656191035,0.00854,66590.0,66589.0,1.73457252]
[1718656191811,0.00854,66590.0,66589.0,2.03492152]
[1718656192031,0.00854,66590.0,66589.0,1.73457252]
[1718656192479,0.00854,66590.0,66589.0,1.64877252]
[1718656192692,0.00854,66590.0,66589.0,1.73457252]
[1718656192911,0.00854,66590.0,66589.0,1.72057252]
[1718656193556,0.00854,66590.0,66589.0,1.70657252]
[1718656193756,0.00854,66590.0,66589.0,1.72057252]
[1718656194015,0.00854,66590.0,66589.0,1.73457252]
[1718656194216,0.00854,66590.0,66589.0,1.72057252]
[1718656194741,0.00854,66590.0,66589.0,1.73457252]
[1718656195095,0.00854,66590.0,66589.0,0.35501788]
[1718656195318,0.00854,66590.0,66589.0,0.65536688]
[1718656198736,0.00854,66590.0,66589.0,0.35501788]
[1718656198881,0.00854,66590.0,66589.0,0.65536688]
[1718656199410,0.00854,66590.0,66589.0,1.52941588]
[1718656199632,0.00854,66590.0,66589.0,1.38177944]
[1718656201008,0.00854,66590.0,66589.0,1.68212844]
[1718656201379,0.00854,66590.0,66589.0,1.38177944]
[1718656201603,0.150146,66602.0,66589.0,1.38177944]
[1718656201604,0.04461075,66606.0,66605.0,0.01877575]
[1718656201787,0.46203225,66618.0,66606.0,0.16891175]
[1718656202006,0.34706961,66618.0,66606.0,0.01877575]
[1718656202228,0.64729061,66618.0,66606.0,0.01877575]
[1718656202401,0.150114,66616.0,66606.0,0.01877575]
[1718656202803,0.43286961,66618.0,66606.0,0.01877575]
[1718656203042,0.34706961,66618.0,66606.0,0.01877575]
[1718656203250,0.49718061,66618.0,66606.0,0.16991175]
[1718656203415,0.34706961,66618.0,66606.0,0.01977575]
[1718656203566,0.34706961,66618.0,66606.0,0.62032175]
[1718656203776,0.34706961,66618.0,66606.0,0.77045775]
[1718656203984,0.34706961,66618.0,66606.0,0.92317031]
[1718656204282,0.17593072,66617.0,66606.0,0.92317031]
[1718656204565,0.17593072,66617.0,66606.0,1.62749919]
[1718656204566,0.1,66617.0,66606.0,1.62749919]
[1718656204681,0.1,66617.0,66606.0,1.92777219]
[1718656204886,0.01886961,66618.0,66606.0,2.05139847]
[1718656205085,0.1312,66616.0,66606.0,1.44085247]
[1718656205415,0.17593072,66615.0,66606.0,0.73810463]
[1718656205618,0.17593072,66615.0,66606.0,0.72510463]
[1718656205817,0.150122,66613.0,66606.0,0.72510463]
[1718656206021,0.17593072,66615.0,66606.0,0.73910463]
[1718656206226,0.158674,66607.0,66606.0,0.012]
[1718656206425,0.00854,66607.0,66606.0,0.03077575]
[1718656206628,0.00854,66607.0,66606.0,0.04477575]
[1718656206842,0.00854,66607.0,66606.0,0.03277575]
[1718656207199,0.00854,66607.0,66606.0,0.04677575]
[1718656207959,0.00854,66607.0,66606.0,0.03277575]
[1718656208169,0.00854,66607.0,66606.0,0.03077575]
[1718656208574,0.00854,66607.0,66606.0,0.04377575]
[1718656208785,0.00854,66607.0,66606.0,0.01877575]
[1718656209180,0.00854,66607.0,66606.0,0.02377575]
[1718656210118,0.300246,66612.0,66606.0,0.02377575]
[1718656210450,0.17593072,66615.0,66609.0,0.01877575]
[1718656210784,0.17593072,66615.0,66610.0,0.01877575]
[1718656211121,0.1055,66614.0,66612.0,0.01877575]
[1718656211302,0.1055,66614.0,66610.0,0.01779098]
[1718656211508,0.1055,66614.0,66609.0,0.01877575]
[1718656211509,0.150122,66613.0,66609.0,0.01877575]
[1718656211735,0.1055,66614.0,66610.0,0.01877575]
[1718656211942,0.17593072,66615.0,66610.0,0.01877575]
[1718656212147,0.07593072,66615.0,66610.0,0.01877575]
[1718656212706,0.07593072,66615.0,66612.0,0.01877575]
[1718656212925,0.07593072,66615.0,66606.0,0.155136]
[1718656212926,0.07593072,66615.0,66610.0,0.01877575]
[1718656213127,0.07593072,66615.0,66612.0,0.01877575]
[1718656213329,0.22604772,66615.0,66611.0,0.01739118]
[1718656213528,0.22604772,66615.0,66609.0,0.01877575]
[1718656214191,0.22604872,66615.0,66609.0,0.01877575]
[1718656214395,0.300259,66609.0,66604.0,0.01877575]
[1718656214612,0.07593072,66607.0,66604.0,0.01877575]
[1718656215758,0.150126,66611.0,66606.0,0.01877575]
[1718656215929,0.150126,66611.0,66600.0,0.383549]
[1718656215930,0.150126,66611.0,66608.0,0.01877575]
[1718656216404,0.150126,66611.0,66606.0,0.01877575]
[1718656217457,0.150125,66611.0,66607.0,0.00525104]
[1718656217659,0.150128,66610.0,66607.0,0.00525104]
[1718656217865,0.150128,66610.0,66606.0,0.01877575]
[1718656218103,0.150128,66610.0,66604.0,0.02677575]
[1718656218288,0.150132,66608.0,66607.0,0.00525335]
[1718656218431,0.150129,66610.0,66604.0,0.02777575]
[1718656218787,0.300253,66611.0,66607.0,0.003]
[1718656218788,0.15013,66609.0,66607.0,0.003]
[1718656219072,0.150132,66608.0,66607.0,0.003]
[1718656219277,0.150129,66610.0,66604.0,0.01877575]
[1718656219477,0.150125,66611.0,66606.0,0.01877575]
[1718656219590,0.150125,66611.0,66607.0,0.007]
[1718656219952,0.150129,66610.0,66607.0,0.007]
[1718656220407,0.103,66617.0,66613.0,0.01877575]
[1718656220612,0.15012,66613.0,66612.0,0.01877575]
[1718656221023,0.15012,66613.0,66612.0,0.0240291]
[1718656221226,0.300229,66616.0,66612.0,0.0240291]
[1718656221227,0.300233,66615.0,66612.0,0.0240291]
[1718656221350,0.150119,66614.0,66612.0,0.0240291]
[1718656221966,0.15012,66613.0,66612.0,0.00525335]
[1718656222372,0.15012,66613.0,66612.0,0.001]
[1718656222575,0.15012,66613.0,66612.0,0.0240291]
[1718656222781,0.15012,66613.0,66610.0,0.01877575]
[1718656223192,0.150119,66614.0,66610.0,0.01877575]
[1718656223395,0.150121,66613.0,66610.0,0.01877575]
[1718656223629,0.150118,66615.0,66611.0,0.00525335]
[1718656223860,0.150118,66615.0,66612.0,0.01877575]
[1718656224725,0.150118,66614.0,66613.0,0.00525335]
[1718656225152,1.471029,66614.0,66613.0,0.00525335]
[1718656225355,0.1058,66604.0,66602.0,0.01877575]
[1718656225565,0.1058,66604.0,66598.0,0.47436007]
[1718656225772,0.1058,66604.0,66595.0,0.01877575]
[1718656225773,0.150159,66596.0,66595.0,0.01877575]
[1718656225974,0.450468,66598.0,66594.0,0.01877575]
[1718656226184,0.150159,66596.0,66593.0,0.4678]
[1718656226392,0.406082,66604.0,66595.0,0.01877575]
[1718656226601,0.150145,66602.0,66595.0,0.01877575]
[1718656226815,0.150145,66602.0,66596.0,0.01877575]
[1718656227448,0.150145,66602.0,66599.0,0.01877575]
[1718656227662,0.150145,66602.0,66600.0,0.01877575]
[1718656227849,0.150143,66603.0,66602.0,0.01877575]
[1718656228078,0.1058,66604.0,66603.0,0.01877575]
[1718656228282,0.1058,66604.0,66602.0,0.01877575]
[1718656228520,0.255942,66604.0,66602.0,0.01877575]
[1718656228722,0.255942,66604.0,66603.0,0.01877575]
[1718656229107,0.1058,66604.0,66603.0,0.01877575]
[1718656229313,0.1058,66604.0,66602.0,0.01877575]
[1718656229519,0.0858,66603.0,66602.0,0.01877575]
[1718656229730,0.0858,66603.0,66596.0,0.01877575]
[1718656229935,0.450433,66603.0,66602.0,0.008]
[1718656230141,0.536233,66603.0,66602.0,0.008]
[1718656230552,0.836519,66603.0,66602.0,0.008]
[1718656230761,0.836515,66603.0,66602.0,0.008]
[1718656230984,0.836515,66603.0,66602.0,0.017]
[1718656231383,0.836515,66603.0,66602.0,0.009]
[1718656231766,0.750715,66603.0,66602.0,0.009]
[1718656232089,0.836515,66603.0,66602.0,0.019]
[1718656232229,0.836515,66603.0,66602.0,0.01]
[1718656232431,0.836515,66603.0,66593.0,0.4678]
[1718656232432,0.0858,66603.0,66593.0,0.4678]
[1718656232680,0.556229,66603.0,66602.0,0.003]
[1718656232853,1.342601,66603.0,66602.0,0.007]
[1718656233486,1.342601,66603.0,66602.0,0.004]
[1718656234294,0.300294,66602.0,66593.0,0.4678]
[1718656234469,0.1,66601.0,66594.0,0.00529156]
[1718656234672,0.1,66601.0,66595.0,0.01877575]
[1718656234986,0.1,66601.0,66593.0,0.78]
[1718656235152,0.1,66601.0,66596.0,0.00529156]
[1718656235356,0.250148,66601.0,66593.0,0.79577575]
[1718656235601,0.1,66601.0,66597.0,0.00529045]
[1718656235775,0.0858,66598.0,66593.0,0.32797575]
[1718656236015,0.0858,66595.0,66593.0,0.32797575]
[1718656236214,0.0858,66595.0,66593.0,0.3092]
[1718656236841,0.0858,66595.0,66591.0,0.000935]
[1718656237039,0.0858,66592.0,66591.0,0.000935]
[1718656237787,0.0858,66592.0,66591.0,0.00622534]
[1718656237965,0.0858,66592.0,66591.0,0.000935]
[1718656238140,0.0858,66596.0,66591.0,0.00622534]
[1718656238344,0.0858,66596.0,66591.0,0.010935]
[1718656238570,0.0858,66596.0,66593.0,0.005]
[1718656238771,0.600654,66594.0,66593.0,0.005]
[1718656238980,0.150168,66592.0,66591.0,0.010935]
[1718656239194,0.95704,66592.0,66591.0,0.000935]
[1718656239404,0.95704,66592.0,66591.0,0.009935]
[1718656239612,0.656704,66592.0,66591.0,0.009935]
[1718656239817,0.442168,66592.0,66591.0,0.005935]
[1718656240428,0.2062,66592.0,66591.0,0.005935]
[1718656240600,0.442168,66592.0,66591.0,0.005935]
[1718656241002,0.442168,66592.0,66591.0,0.000935]
[1718656241501,0.657704,66592.0,66591.0,0.000935]
[1718656241666,1.053843,66592.0,66591.0,0.000935]
[1718656241870,1.052843,66592.0,66591.0,0.000935]
[1718656242977,1.053843,66592.0,66591.0,0.000935]
[1718656243347,0.95704,66592.0,66591.0,0.000935]
[1718656244975,0.95804,66592.0,66591.0,0.000935]
[1718656246573,1.258376,66592.0,66591.0,0.000935]
[1718656247331,0.95804,66592.0,66591.0,0.000935]
[1718656251287,1.258376,66592.0,66591.0,0.000935]
[1718656253517,0.95804,66592.0,66591.0,0.000935]
[1718656253842,1.258376,66592.0,66591.0,0.000935]
[1718656255538,1.28648144,66592.0,66591.0,0.000935]
[1718656255732,1.48648144,66592.0,66591.0,0.000935]
[1718656256782,1.78681744,66592.0,66591.0,0.000935]
[1718656257643,1.63410488,66592.0,66591.0,0.000935]
[1718656258289,1.94581711,66592.0,66591.0,0.000935]
[1718656259228,1.64548111,66592.0,66591.0,0.000935]
[1718656259431,1.61521183,66592.0,66591.0,0.000935]
[1718656259551,0.68864295,66592.0,66591.0,0.000935]
[1718656259756,0.82743472,66592.0,66591.0,0.000935]
[1718656259986,0.82743472,66592.0,66591.0,0.00629024]
[1718656259987,1.12777072,66592.0,66591.0,0.00629024]
[1718656260150,1.12777072,66592.0,66591.0,0.000935]
[1718656260355,0.52709872,66592.0,66591.0,0.00629024]
[1718656260605,0.82743472,66592.0,66591.0,0.000935]
[1718656260804,0.82743472,66592.0,66591.0,0.00629024]
[1718656260961,0.82743472,66592.0,66591.0,0.000935]
[1718656261200,0.52709872,66592.0,66591.0,0.00629024]
[1718656261398,0.82743472,66592.0,66591.0,0.000935]
[1718656261598,0.82743472,66592.0,66591.0,0.00629024]
[1718656261835,0.82643472,66592.0,66591.0,0.000935]